bitfinex-derivatives/quotes_ETHF0:USTF0_20240923
["timestamp","ask_amount","ask_price","bid_price","bid_amount"]
[1727108262547,1.9334,2693.5,2692.3,0.3714]
[1727108262548,0.37139,2692.5,2692.3,0.3714]
[1727108262742,0.37137,2692.6,2692.0,4.13641]
[1727108262934,3.2078,2693.0,2692.4,0.92849]
[1727108263135,3.2078,2693.0,2692.9,0.37132]
[1727108263535,3.2078,2693.0,2692.9,1.29964]
[1727108263744,3.2078,2693.0,2692.9,5.01324]
[1727108264238,3.2078,2693.0,2692.9,4.08492]
[1727108264842,3.2078,2693.0,2692.9,10.08492]
[1727108265350,3.2078,2693.0,2692.9,3.7136]
[1727108265651,3.2078,2693.0,2692.9,4.08492]
[1727108266150,3.2078,2693.0,2692.9,10.08492]
[1727108266351,3.2078,2693.0,2692.9,11.01324]
[1727108266559,3.2078,2693.0,2692.9,51.81324]
[1727108267055,3.2078,2693.0,2692.9,50.88492]
[1727108267244,0.37127,2693.3,2692.9,44.5136]
[1727108267551,0.37125,2693.4,2693.1,0.37129]
[1727108268138,0.9643,2693.5,2692.9,40.8]
[1727108268346,0.9643,2693.5,2693.3,0.37126]
[1727108268545,0.9643,2693.5,2692.9,44.0078]
[1727108268741,0.9643,2693.5,2692.9,40.8]
[1727108268945,0.37125,2693.4,2692.9,40.8]
[1727108269152,0.37125,2693.4,2693.1,0.37128]
[1727108269750,4.1721,2693.5,2693.3,0.37126]
[1727108270454,4.1721,2693.5,2693.4,0.37125]
[1727108270646,4.1721,2693.5,2693.0,0.92828]
[1727108270842,3.2078,2693.5,2692.9,44.0078]
[1727108271048,3.2078,2693.5,2692.9,44.9361]
[1727108271049,3.57905,2693.5,2692.9,44.9361]
[1727108271847,3.2078,2693.5,2693.1,0.37129]
[1727108272054,3.2078,2693.5,2693.3,0.37126]
[1727108272246,3.2078,2693.5,2693.4,0.37125]
[1727108272451,3.57905,2693.5,2693.1,40.8]
[1727108272855,3.57905,2693.5,2693.2,0.37128]
[1727108273053,0.37135,2692.7,2692.3,6.4178]
[1727108273257,3.7128,2693.4,2692.3,6.4178]
[1727108273258,0.92835,2692.8,2692.3,0.3714]
[1727108273558,4.1779174,2693.0,2691.9,3.21]
[1727108273753,1.3413774,2693.4,2693.2,0.37128]
[1727108273948,0.9701174,2693.6,2693.2,3.2078]
[1727108274149,3.37388241,2694.0,2693.9,0.37119]
[1727108274150,3.3707935,2694.0,2693.9,0.37119]
[1727108274365,1.3412674,2694.2,2693.8,0.37119]
[1727108274555,1.3412674,2694.2,2693.6,40.8]
[1727108274556,0.37115,2694.2,2693.9,0.37118]
[1727108274755,0.37115,2694.2,2693.8,0.37119]
[1727108275054,3.57895,2694.2,2693.6,40.8]
[1727108275261,3.2078,2694.2,2693.6,40.8]
[1727108275457,3.57895,2694.2,2693.8,0.37119]
[1727108275756,3.2078,2694.2,2693.9,0.37118]
[1727108275954,3.2078,2694.2,2693.6,44.0078]
[1727108276155,3.2078,2694.2,2693.9,0.37118]
[1727108276349,3.57894,2694.2,2693.9,0.37118]
[1727108276858,3.2078,2694.2,2693.6,44.0078]
[1727108277353,3.57895,2694.2,2693.9,0.37118]
[1727108277551,3.2078,2694.2,2693.6,40.8]
[1727108277755,2.88000592,2694.7,2693.6,40.8]
[1727108277756,0.9701174,2694.9,2694.2,0.92787]
[1727108277955,0.37106,2694.9,2694.4,0.3711]
[1727108278260,0.37113,2694.4,2694.0,0.37117]
[1727108278445,3.2078,2694.7,2693.9,3.21]
[1727108278649,0.3711,2694.6,2694.2,0.37114]
[1727108279048,0.37107,2694.8,2694.4,0.37111]
[1727108279256,3.57884,2695.0,2694.6,0.37109]
[1727108279758,1.7813,2695.2,2694.4,3.2078]
[1727108279953,0.9701174,2695.4,2694.9,3.2078]
[1727108280254,1.4551761,2695.6,2694.7,3.21]
[1727108280255,3.57878,2695.5,2694.7,3.21]
[1727108280454,0.37098,2695.4,2695.0,0.37102]
[1727108280656,0.37098,2695.4,2694.7,3.21]
[1727108280858,0.371,2695.3,2694.9,0.37104]
[1727108281063,0.37098,2695.4,2694.7,3.21]
[1727108281356,0.9701174,2695.6,2694.7,3.21]
[1727108281357,3.2078,2695.5,2694.7,3.21]
[1727108281654,0.37099,2695.4,2695.0,0.37103]
[1727108281958,3.2078,2695.5,2695.0,0.37103]
[1727108282155,3.2078,2695.2,2694.6,4.185]
[1727108282358,3.2078,2695.2,2694.8,0.37105]
[1727108282359,3.57882,2695.2,2694.8,0.37105]
[1727108282555,0.37103,2695.1,2694.7,0.37107]
[1727108282758,0.37103,2695.1,2694.8,0.37106]
[1727108283055,3.2078,2695.2,2694.9,0.37104]
[1727108283262,3.2078,2695.2,2694.6,3.2078]
[1727108283459,3.2078,2695.2,2694.8,0.37105]
[1727108283460,0.9051,2695.2,2694.8,0.37105]
[1727108283661,4.1779174,2695.6,2694.9,3.7104]
[1727108283856,4.1779174,2695.6,2694.7,3.21]
[1727108283857,0.37095,2695.7,2695.3,0.37098]
[1727108284050,4.1779174,2695.9,2695.4,3.21]
[1727108284356,3.58869,2696.1,2695.4,3.21]
[1727108284559,0.3709,2696.0,2695.6,0.37094]
[1727108284752,3.58869,2696.1,2695.7,0.37093]
[1727108284953,3.2178,2696.1,2695.6,0.37094]
[1727108285157,0.92725,2696.0,2695.4,0.9096]
[1727108285454,3.2178,2696.1,2695.4,1.28057]
[1727108285660,0.37095,2695.7,2695.1,8.886]
[1727108285852,0.37097,2695.5,2695.2,0.371]
[1727108286053,0.37097,2695.5,2695.1,3.21]
[1727108286054,0.37094,2695.7,2695.4,0.37097]
[1727108286260,3.2078,2695.8,2695.1,3.21]
[1727108286458,3.2178,2696.1,2695.4,3.21]
[1727108286662,0.01,2696.1,2695.9,0.37091]
[1727108286865,0.01,2696.1,2696.0,1.29815]
[1727108287250,0.01,2696.1,2696.0,11.00695]
[1727108287655,0.01,2696.1,2696.0,51.80695]
[1727108288064,0.01,2696.1,2696.0,50.8797]
[1727108288262,0.01,2696.1,2696.0,51.80695]
[1727108288561,0.01,2696.1,2696.0,52.7342]
[1727108288860,1.8908,2697.1,2696.0,50.5088]
[1727108289063,1.8908,2697.1,2696.2,3.2078]
[1727108289264,1.8908,2697.1,2696.5,0.37082]
[1727108289469,1.8908,2697.1,2696.2,6.4178]
[1727108289658,3.2078,2696.9,2696.2,6.4178]
[1727108289862,3.2078,2696.9,2696.7,0.37079]
[1727108290167,4.082,2697.5,2696.5,3.21]
[1727108290363,0.37074,2697.2,2696.8,0.37078]
[1727108290555,3.2078,2697.5,2696.5,7.34486]
[1727108290757,3.2078,2697.5,2696.5,6.4178]
[1727108290956,4.13456,2697.5,2696.5,6.4178]
[1727108291262,4.13456,2697.5,2696.9,0.37077]
[1727108291463,4.13456,2697.5,2697.0,0.37075]
[1727108291464,0.37073,2697.3,2697.0,0.37075]
[1727108291761,3.2078,2697.5,2696.9,0.37076]
[1727108291955,3.2078,2697.5,2696.5,6.4178]
[1727108292771,4.13456,2697.5,2696.8,0.37078]
[1727108292968,4.13456,2697.5,2696.5,6.4178]
[1727108292969,3.2078,2697.2,2696.5,3.2078]
[1727108293165,0.9269,2697.0,2696.4,3.2078]
[1727108293471,1.88877,2696.9,2696.4,3.2078]
[1727108293766,0.9618,2696.9,2696.4,3.2078]
[1727108293970,0.37079,2696.8,2696.6,0.37081]
[1727108294166,0.9618,2696.9,2696.4,3.2078]
[1727108294567,0.3708,2696.7,2696.5,0.37082]
[1727108294756,0.9618,2696.9,2696.4,0.37083]
[1727108294757,0.37081,2696.6,2696.4,0.37083]
[1727108294964,0.37081,2696.7,2696.4,0.37083]
[1727108295163,0.37083,2696.5,2696.3,0.37085]
[1727108295359,0.37085,2696.4,2696.2,3.58086]
[1727108295562,0.92708,2696.5,2695.4,15.6968]
[1727108295871,0.92711,2696.4,2695.4,15.6968]
[1727108296070,3.2078,2696.0,2695.4,3.2078]
[1727108296373,3.2078,2696.0,2695.0,4.13757]
[1727108296374,0.92728,2695.9,2695.0,3.2078]
[1727108296575,0.37099,2695.3,2695.1,0.37101]
[1727108296772,1.86488,2695.9,2694.3,7.3442]
[1727108296773,6.9182,2695.2,2694.3,7.3442]
[1727108296972,0.37112,2694.4,2694.0,3.2078]
[1727108297272,0.37112,2694.4,2694.1,0.37115]
[1727108297471,0.37113,2694.3,2694.0,3.57896]
[1727108297670,0.92766,2694.8,2693.9,0.37117]
[1727108297872,0.37115,2694.2,2693.8,1.28489]
[1727108298069,0.92776,2694.5,2693.8,0.9137]
[1727108298268,0.92776,2694.5,2693.9,0.37117]
[1727108298468,0.37115,2694.2,2693.9,0.37117]
[1727108298667,3.2078,2694.6,2693.8,0.9137]
[1727108298863,1.86526,2694.9,2694.1,0.37115]
[1727108298864,0.37112,2694.4,2694.1,0.37115]
[1727108299075,0.37112,2694.4,2694.2,0.37114]
[1727108299376,0.37112,2694.4,2693.7,44.0078]
[1727108299377,0.37119,2693.9,2693.7,3.57901]
[1727108299577,3.2078,2694.1,2693.4,3.2078]
[1727108299767,0.92794,2694.0,2693.4,40.8]
[1727108299967,0.37122,2693.7,2693.4,41.17125]
[1727108300576,3.7128,2693.6,2693.0,3.2078]
[1727108300769,3.7128,2693.6,2692.3,4.13852]
[1727108300770,0.37126,2693.4,2692.3,4.13852]
[1727108300976,3.2078,2693.5,2692.3,4.13852]
[1727108300977,0.37125,2693.5,2692.8,3.2078]
[1727108301478,2.21373,2693.6,2692.8,3.2078]
[1727108301779,1.8425,2693.6,2692.8,3.2078]
[1727108301976,1.8425,2693.6,2693.1,0.37129]
[1727108302278,4.13594,2693.4,2692.6,40.8]
[1727108302469,0.37131,2693.0,2692.6,40.8]
[1727108302672,3.2078,2692.9,2692.6,40.8]
[1727108302877,6.9214,2692.9,2692.1,3.2078]
[1727108303068,0.3714,2692.4,2692.1,3.2078]
[1727108303276,3.2078,2692.6,2692.1,3.2078]
[1727108303575,0.37138,2692.5,2692.1,3.2078]
[1727108303781,0.3614,2692.4,2692.1,3.2078]
[1727108304182,3.2078,2692.6,2692.1,3.2078]
[1727108304478,0.37139,2692.5,2692.1,3.2078]
[1727108305384,3.2078,2692.9,2692.1,3.2078]
[1727108305584,3.57918,2692.6,2692.1,3.2078]
[1727108305981,0.3714,2692.4,2692.1,3.2078]
[1727108306184,3.2078,2692.6,2692.1,3.2078]
[1727108306485,0.92825,2693.1,2692.3,0.3714]
[1727108306486,3.57914,2692.9,2692.3,0.3714]
[1727108306783,3.2078,2692.9,2692.2,40.8]
[1727108306982,0.37138,2692.6,2692.2,40.8]
[1727108307284,0.92838,2692.8,2692.2,40.8]
[1727108307489,3.2078,2692.6,2692.1,3.2078]
[1727108307690,0.37141,2692.3,2692.1,3.2078]
[1727108307888,0.37141,2692.3,2691.6,0.9238]
[1727108307889,3.7144,2692.2,2691.6,3.2078]
[1727108308080,0.37151,2691.6,2691.1,0.37156]
[1727108308279,3.2078,2691.7,2691.1,0.37156]
[1727108308479,0.37154,2691.4,2691.2,40.8]
[1727108308785,0.37151,2691.6,2691.2,40.8]
[1727108308981,0.37151,2691.6,2691.2,41.17155]
[1727108309179,3.5793,2691.7,2691.2,0.37155]
[1727108309393,0.37153,2691.5,2691.0,3.57937]
[1727108309583,0.37153,2691.5,2691.0,3.57938]
[1727108309778,0.37153,2691.4,2691.1,40.8]
[1727108310186,0.37151,2691.6,2691.1,40.8]
[1727108310388,1.794,2691.8,2691.3,0.37154]
[1727108310686,0.37148,2691.8,2691.3,3.57934]
[1727108310889,3.2078,2691.7,2691.1,40.8]
[1727108311087,0.37155,2691.3,2691.1,40.8]
[1727108311490,0.37155,2691.3,2691.0,3.2078]
[1727108311491,4.13661,2691.5,2691.0,3.2078]
[1727108311695,0.37157,2691.1,2691.0,3.2078]
[1727108312295,0.37163,2690.8,2690.3,3.2078]
[1727108312493,9.716,2691.1,2690.3,3.2078]
[1727108312494,3.2078,2691.1,2690.3,3.2078]
[1727108312787,0.9512,2691.3,2690.6,3.2078]
[1727108312990,3.2078,2691.5,2691.2,0.37155]
[1727108313290,3.2078,2691.5,2690.9,3.2078]
[1727108313494,3.2078,2691.5,2691.3,0.37153]
[1727108313790,3.2078,2691.8,2690.9,3.2078]
[1727108314384,0.37152,2691.5,2691.1,0.37157]
[1727108314592,0.37151,2691.6,2691.2,0.37156]
[1727108314891,3.57928,2691.8,2690.9,4.13677]
[1727108315196,3.2078,2691.8,2690.9,3.2078]
[1727108315497,3.2078,2692.4,2691.5,6.4178]
[1727108315990,0.37143,2692.2,2691.5,6.4178]
[1727108316288,3.2078,2692.4,2692.1,0.37143]
[1727108316588,1.8159,2692.9,2692.2,40.8]
[1727108316789,1.8159,2692.9,2692.4,0.37139]
[1727108316790,3.2078,2692.7,2692.4,0.37139]
[1727108316986,3.2078,2692.7,2692.2,41.17141]
[1727108317189,3.2078,2692.7,2692.2,40.8]
[1727108317389,3.2078,2692.7,2692.3,0.3714]
[1727108317593,0.37137,2692.6,2692.3,0.3714]
[1727108318080,3.2078,2692.7,2692.4,0.37139]
[1727108318292,3.2078,2692.7,2692.2,40.8]
[1727108318293,1.8159,2692.9,2692.3,0.3714]
[1727108318583,0.37139,2692.4,2692.2,40.8]
[1727108319084,0.3714,2692.4,2692.2,40.8]
[1727108319290,0.37141,2692.3,2692.2,40.8]
[1727108319687,3.2078,2692.5,2692.2,40.8]
[1727108319892,3.57918,2692.5,2692.2,41.17141]
[1727108320084,3.2078,2692.5,2692.3,0.3714]
[1727108320287,3.57918,2692.5,2692.2,41.17141]
[1727108320500,0.37139,2692.4,2692.2,40.8]
[1727108320885,3.2078,2692.5,2692.4,0.37139]
[1727108321092,0.37138,2692.5,2692.2,41.17141]
[1727108321286,0.3714,2692.4,2692.2,40.8]
[1727108321487,0.37141,2692.3,2692.2,40.8]
[1727108321692,3.2078,2692.5,2692.3,0.3714]
[1727108321895,0.37141,2692.3,2692.2,40.8]
[1727108322093,0.9284,2692.7,2691.9,3.57925]
[1727108322094,0.3714,2692.4,2692.1,0.37143]
[1727108322497,3.2078,2692.5,2692.1,0.37143]
[1727108322498,3.2078,2692.5,2692.1,40.8]
[1727108322692,0.92835,2692.8,2692.3,0.3714]
[1727108322893,0.37138,2692.6,2692.3,0.3714]
[1727108323103,0.3714,2692.4,2692.1,40.8]
[1727108323303,0.3714,2692.4,2692.1,41.17142]
[1727108323500,0.37141,2692.3,2692.1,41.17142]
[1727108323705,0.37141,2692.3,2692.1,40.8]
[1727108323889,0.37141,2692.3,2691.1,3.21]
[1727108323890,4.64296,2692.2,2691.1,3.21]
[1727108324092,0.37151,2691.6,2691.4,0.37153]
[1727108324290,0.37151,2691.6,2691.5,40.8]
[1727108324494,0.37151,2691.6,2691.4,0.37153]
[1727108324697,0.3715,2691.7,2691.4,0.37153]
[1727108324899,0.3715,2691.7,2691.5,0.37151]
[1727108325201,3.2078,2691.8,2691.1,40.8]
[1727108325392,3.2078,2691.5,2691.1,41.17157]
[1727108325589,3.57933,2691.5,2691.3,0.37154]
[1727108325788,0.37153,2691.4,2691.3,0.37154]
[1727108325999,5.06751,2691.8,2691.1,40.8]
[1727108326192,1.30248,2691.8,2691.6,0.3715]
[1727108326394,3.57928,2691.8,2691.6,0.3715]
[1727108326907,0.37145,2692.0,2691.4,0.92883]
[1727108327103,0.37147,2691.9,2691.5,40.8]
[1727108327304,0.37147,2691.9,2691.6,0.3715]
[1727108327598,4.0799,2692.1,2691.0,3.2078]
[1727108327599,0.92863,2692.0,2691.0,3.2078]
[1727108327803,3.2078,2691.7,2691.2,0.37155]
[1727108328099,0.37153,2691.5,2691.2,41.17155]
[1727108328500,0.37152,2691.5,2691.2,41.17155]
[1727108328806,3.2078,2691.7,2691.0,3.2078]
[1727108328807,0.37154,2691.4,2691.0,3.2078]
[1727108329298,0.37151,2691.6,2691.1,40.8]
[1727108329494,0.37151,2691.6,2691.3,0.37153]
[1727108329702,0.37152,2691.5,2691.3,0.37153]
[1727108329901,0.37152,2691.5,2691.2,0.37155]
[1727108330096,0.37152,2691.5,2691.1,40.8]
[1727108330097,0.37156,2691.2,2691.1,40.8]
[1727108330303,0.37157,2691.1,2690.8,1.23491]
[1727108330502,0.37158,2691.1,2690.8,1.2349]
[1727108330705,0.37158,2691.1,2690.9,0.3716]
[1727108331005,0.37159,2691.0,2690.8,0.3716]
[1727108331197,0.37161,2690.9,2690.7,0.37162]
[1727108331505,3.2078,2691.2,2690.6,3.2078]
[1727108331696,1.8576,2691.5,2691.1,0.37157]
[1727108331697,0.37154,2691.4,2691.1,0.37157]
[1727108331897,3.2078,2691.5,2690.8,0.92904]
[1727108332101,0.37153,2691.4,2690.8,4.13684]
[1727108332404,0.37156,2691.2,2690.9,0.37159]
[1727108332905,3.2078,2691.5,2690.8,3.2078]
[1727108333411,0.37156,2691.2,2690.9,0.37159]
[1727108333604,0.92883,2691.4,2690.5,6.99692]
[1727108333905,0.92883,2691.4,2690.8,0.37161]
[1727108334106,3.2078,2691.5,2690.5,6.99692]
[1727108334107,3.2078,2691.5,2690.6,0.92911]
[1727108334505,0.92887,2691.3,2690.5,6.0678]
[1727108334703,0.37159,2691.0,2690.7,0.37162]
[1727108334900,0.92887,2691.3,2690.5,3.2078]
[1727108334901,4.13672,2691.2,2690.5,3.2078]
[1727108335107,0.37162,2690.8,2690.5,0.37165]
[1727108335817,0.05001,2690.7,2690.2,0.8768]
[1727108336110,0.37165,2690.6,2690.4,0.37167]
[1727108336408,0.05001,2690.7,2689.6,5.04184]
[1727108336598,4.13694,2690.5,2689.9,0.37173]
[1727108336799,0.92928,2690.1,2689.6,4.0874]
[1727108337112,0.05001,2690.2,2689.7,0.37176]
[1727108337113,0.37173,2690.0,2689.7,0.37176]
[1727108337310,0.9293,2690.1,2689.1,8.7759]
[1727108337605,4.18708,2690.2,2689.1,1.25144]
[1727108337606,3.2078,2689.9,2689.1,1.25144]
[1727108337809,0.37181,2689.4,2689.1,0.37184]
[1727108338008,0.37183,2689.3,2689.1,40.8]
[1727108338203,0.05001,2689.5,2689.1,40.8]
[1727108338408,3.57963,2689.3,2689.1,40.8]
[1727108338608,0.05001,2689.5,2689.2,0.37183]
[1727108338815,0.42181,2689.5,2689.2,0.37183]
[1727108339111,0.05001,2689.4,2689.2,0.37183]
[1727108339309,0.42182,2689.4,2689.1,0.37184]
[1727108339610,0.05001,2689.4,2688.8,41.7297]
[1727108339810,0.05001,2689.4,2689.2,0.37183]
[1727108340012,0.05001,2689.3,2689.2,0.37183]
[1727108340405,0.05001,2689.3,2688.8,40.8]
[1727108340703,0.05001,2689.3,2689.2,0.37183]
[1727108341103,0.05001,2689.3,2689.2,10.09023]
[1727108341306,0.05001,2689.3,2689.2,11.01982]
[1727108341915,3.2078,2689.9,2689.8,0.37175]
[1727108342214,1.32078,2690.4,2689.7,3.2078]
[1727108342215,0.9491,2690.4,2689.7,3.2078]
[1727108342510,3.5795,2690.2,2689.9,0.37173]
[1727108342713,3.7176,2690.1,2689.3,0.9348]
[1727108342915,4.13705,2690.2,2689.5,0.37179]
[1727108343108,3.2078,2689.9,2689.5,0.37179]
[1727108343303,0.37175,2689.8,2689.5,0.37179]
[1727108343711,3.57955,2689.9,2689.5,0.37179]
[1727108343918,3.2078,2689.9,2689.8,0.37175]
[1727108344105,0.907,2690.5,2689.8,9.2078]
[1727108344305,0.92911,2690.6,2689.9,3.2078]
[1727108344620,3.2078,2690.3,2690.0,0.37172]
[1727108344807,3.57949,2690.3,2690.0,0.37172]
[1727108345010,3.2078,2690.3,2689.6,0.92945]
[1727108345210,3.2078,2690.3,2690.1,0.3717]
[1727108345409,3.2078,2690.3,2690.2,0.3717]
[1727108345610,3.2078,2690.3,2689.5,3.2078]
[1727108346015,3.2078,2690.3,2690.2,0.3717]
[1727108346212,3.57944,2690.7,2690.3,0.37167]
[1727108346409,3.57944,2690.7,2689.9,0.37173]
[1727108346410,3.2078,2690.7,2689.9,0.37173]
[1727108346716,1.80874,2690.8,2689.9,0.37173]
[1727108346717,0.3717,2690.2,2690.0,40.8]
[1727108346913,0.37169,2690.3,2690.0,41.17172]
[1727108347216,0.37166,2690.5,2690.2,0.37169]
[1727108347408,3.2078,2690.6,2690.0,40.8]
[1727108347914,0.37165,2690.5,2690.0,40.8]
[1727108348118,3.2078,2690.6,2690.0,44.9371]
[1727108348311,3.2078,2690.6,2690.4,0.37166]
[1727108348724,3.2078,2690.6,2690.5,0.37165]
[1727108349517,3.2078,2690.6,2690.2,0.92923]
[1727108349518,3.57939,2691.0,2690.7,0.37162]
[1727108349908,0.37158,2691.1,2690.4,0.92918]
[1727108350212,4.082,2691.2,2690.4,0.92918]
[1727108350419,0.37166,2690.5,2690.2,0.37169]
[1727108350919,0.37166,2690.5,2690.3,0.37168]
[1727108351421,0.37164,2690.7,2690.4,0.37166]
[1727108351619,0.37167,2690.4,2690.1,0.8724]
[1727108351819,0.92911,2690.6,2690.0,40.8]
[1727108352020,0.37171,2690.2,2690.0,41.17172]
[1727108352208,0.37171,2690.2,2690.0,0.37172]
[1727108352209,0.3717,2690.2,2690.0,0.37172]
[1727108352716,0.3717,2690.2,2689.6,0.92945]
[1727108352717,3.57947,2690.5,2690.3,0.37168]
[1727108352919,0.37167,2690.4,2690.3,0.37168]
[1727108353117,0.37167,2690.4,2690.2,0.37169]
[1727108353623,3.2078,2690.5,2690.2,0.37169]
[1727108353624,0.37168,2690.3,2690.2,0.37169]
[1727108354226,0.37167,2690.4,2690.2,0.37169]
[1727108354522,0.37168,2690.3,2690.1,0.3717]
[1727108354719,0.37168,2690.3,2690.2,0.3717]
[1727108355014,3.2078,2690.4,2690.1,0.3717]
[1727108355217,0.37169,2690.3,2690.1,0.3717]
[1727108355418,3.2078,2690.4,2690.0,0.37172]
[1727108355615,3.2078,2690.4,2689.7,40.8]
[1727108355815,0.92921,2690.3,2689.9,0.37173]
[1727108356012,0.92921,2690.3,2689.7,40.8]
[1727108356013,4.13701,2690.3,2689.7,40.8]
[1727108356321,1.7834,2690.6,2689.5,0.9383]
[1727108356322,3.2078,2690.0,2689.5,0.9383]
[1727108356512,3.2078,2690.0,2689.7,0.37176]
[1727108356712,0.37175,2689.9,2689.5,41.7383]
[1727108356923,3.57953,2690.0,2689.8,0.37174]
[1727108357118,3.57953,2690.0,2689.5,41.7383]
[1727108357119,0.37176,2689.8,2689.5,41.7383]
[1727108357317,0.37174,2689.9,2689.5,0.9383]
[1727108357516,0.37174,2689.9,2689.8,0.37175]
[1727108358119,0.37174,2689.9,2689.5,0.9383]
[1727108358428,0.37174,2689.9,2689.8,0.37175]
[1727108359122,3.2078,2690.0,2689.5,0.9383]
[1727108359322,0.37174,2689.9,2689.8,0.37175]
[1727108359817,3.2078,2690.0,2689.9,0.37174]
[1727108359818,3.57953,2690.0,2689.9,0.37174]
[1727108360018,3.2078,2690.0,2689.9,0.37174]
[1727108360213,3.57949,2690.3,2690.2,0.3717]
[1727108360418,3.2078,2690.3,2690.2,0.3717]
[1727108360616,3.57949,2690.3,2690.1,0.3717]
[1727108360820,0.3717,2690.2,2690.1,0.3717]
[1727108361122,3.2078,2690.3,2690.2,0.3717]
[1727108361624,3.57949,2690.3,2689.8,0.92939]
[1727108361822,3.2078,2690.3,2690.2,0.3717]
[1727108362415,0.37166,2690.5,2690.4,0.37167]
[1727108362720,0.37166,2690.5,2689.8,0.92937]
[1727108362721,0.92914,2690.5,2689.8,0.92937]
[1727108362952,0.37169,2690.3,2689.8,0.92937]
[1727108363316,0.37168,2690.4,2689.9,0.92935]
[1727108363522,5.01094,2690.6,2689.9,0.92935]
[1727108363726,0.37167,2690.4,2690.3,0.37168]
[1727108363921,0.37167,2690.4,2689.9,0.92935]
[1727108363922,4.0818,2690.6,2690.5,0.37165]
[1727108364120,3.2078,2690.6,2690.5,0.37165]
[1727108364931,3.2078,2690.6,2690.0,3.2078]
[1727108364932,6.9246,2690.6,2690.0,3.2078]
[1727108365125,3.2078,2690.3,2689.7,0.92941]
[1727108365319,3.2078,2690.3,2689.6,4.13724]
[1727108365320,3.2078,2690.1,2689.6,4.13724]
[1727108365522,0.92932,2690.0,2689.5,0.9383]
[1727108365719,0.37177,2689.7,2689.6,0.37177]
[1727108366023,0.3718,2689.5,2689.0,0.92965]
[1727108366224,0.907,2689.8,2688.9,0.9086]
[1727108366429,0.37174,2689.9,2689.8,0.37175]
[1727108366931,0.37167,2690.4,2689.9,0.92935]
[1727108367130,3.57946,2690.5,2690.3,0.37168]
[1727108367329,0.9701174,2690.7,2690.5,0.37165]
[1727108367330,1.3417474,2690.7,2690.5,0.37165]
[1727108367528,1.3417474,2690.7,2690.2,0.37169]
[1727108367529,0.37167,2690.4,2690.2,0.37169]
[1727108367830,3.57944,2690.6,2690.4,0.37166]
[1727108368030,3.2078,2690.6,2690.5,0.37165]
[1727108369029,3.2078,2690.6,2690.4,0.37166]
[1727108369219,3.2078,2690.6,2690.5,0.37165]
[1727108369818,3.57945,2690.6,2690.4,0.37166]
[1727108370025,3.57945,2690.6,2689.7,3.95499938]
[1727108370026,3.2078,2690.6,2689.9,3.2078]
[1727108370224,0.37167,2690.4,2690.2,0.37169]
[1727108370824,5.1070474,2690.6,2690.5,0.37165]
[1727108370825,3.2078,2690.6,2690.5,0.37165]
[1727108372525,3.2078,2690.6,2690.4,0.9222]
[1727108372732,3.2078,2690.6,2689.5,0.9173]
[1727108372733,0.37174,2689.9,2689.5,0.9173]
[1727108372931,6.0678,2690.2,2689.3,4.129]
[1727108373137,3.2078,2689.9,2689.3,0.9212]
[1727108373630,4.13716,2689.9,2689.3,0.9212]
[1727108373840,1.34175203,2689.8,2689.1,0.92963]
[1727108374033,0.97000203,2689.8,2689.2,0.92959]
[1727108374435,0.97000203,2690.1,2689.9,0.37173]
[1727108374732,0.97000203,2690.1,2689.9,0.37174]
[1727108375237,0.97000203,2690.1,2689.3,3.2078]
[1727108375438,0.37176,2689.8,2689.1,0.9212]
[1727108375761,0.97000203,2689.8,2689.5,0.37179]
[1727108375927,4.54955203,2689.9,2689.5,0.37179]
[1727108376132,4.17780203,2689.9,2689.6,0.37178]
[1727108376333,4.54954203,2689.9,2689.5,0.37178]
[1727108376833,4.54954203,2689.9,2689.3,3.2078]
[1727108376834,4.17780203,2689.9,2689.6,0.37177]
[1727108377431,4.17780203,2689.9,2689.4,0.3718]
[1727108377432,1.34175203,2689.8,2689.4,0.3718]
[1727108377835,0.97000203,2689.7,2689.5,0.37179]
[1727108378142,5.0347261,2689.9,2689.5,0.37179]
[1727108378143,0.97000203,2689.8,2689.5,0.37179]
[1727108378436,0.92949,2689.5,2689.0,3.2078]
[1727108378635,0.37184,2689.2,2689.0,3.2078]
[1727108378943,0.37185,2689.1,2689.0,3.2078]
[1727108379146,0.97183612,2689.3,2688.6,44.0078]
[1727108379147,3.2078,2689.2,2688.6,44.0078]
[1727108379446,3.2078,2689.2,2688.6,3.2078]
[1727108379447,0.3719,2688.7,2688.6,3.2078]
[1727108379634,0.3719,2688.7,2688.3,3.2078]
[1727108379635,0.97183612,2688.7,2688.3,3.2078]
[1727108379841,0.97183612,2688.5,2687.9,0.8973]
[1727108380132,0.97183612,2688.5,2688.4,0.37194]
[1727108380340,0.97183612,2688.7,2688.6,0.37192]
[1727108380839,0.97183612,2688.7,2688.6,3.57972]
[1727108381138,2.42838241,2689.1,2689.0,0.37186]
[1727108381139,0.97183612,2689.1,2689.0,0.37186]
[1727108381434,3.74598241,2689.5,2689.0,3.7184]
[1727108381435,0.97183612,2689.4,2689.0,3.7184]
[1727108381628,0.97183612,2689.5,2689.0,0.92966]
[1727108381826,5.15050592,2689.8,2689.0,0.92966]
[1727108381827,0.97183612,2689.7,2689.5,0.37179]
[1727108382026,0.97183612,2689.6,2689.2,3.2078]
[1727108382430,0.97183612,2689.6,2689.2,40.8]